Cogmind - Beta 16 @@@ ROGUE MODE // 2025.10.26 @ 18:25:19 Player: Mxykikker Result: Self-destructed Performance ------------- Evolutions (3) 1500 Regions Visited (5) 1000 Robots Destroyed (35) 175 Value Destroyed (1118) 1118 Prototype IDs (1) 20 Alien Tech Used (0) 0 Bonus (200) 200 TOTAL SCORE: 4013 Bonus ------- Entered Garrisons 200 Cogmind --------- Core Integrity 253/700 Matter 300/300 Energy 79/100 System Corruption 0% Temperature Cool (0) Movement Core (50) Location -7/Garrison Parts ------- > --- POWER (1) -------- (None) > --- PROPULSION (3) --- (None) > --- UTILITY (6) ------ Advanced Weight Redist. System Improved Signal Interpreter Hacking Suite > --- WEAPON (3) ------- Katana > --- INVENTORY (5) ---- Relay Coupler [NC] (34) Relay Coupler [NC] (33) Improved Datajack Improved Datajack Peak State ------------ > --- POWER ------------ Light Nuclear Core > --- PROPULSION ------- Cesium-ion Thruster Xenon Bombardment Thruster Improved Cesium-ion Thruster > --- UTILITY ---------- Improved Signal Interpreter Hacking Suite Hacking Suite System Shield System Shield System Shield > --- WEAPON ----------- Katana Katana Katana > --- INVENTORY -------- Cesium-ion Thruster Improved Sensor Array Reaction Control System Improved Datajack Improved Datajack [Rating: 43] Favorites ----------- Power Ion Engine Engine Ion Engine Power Core Light Nuclear Core Propulsion Improved Cesium-ion Thruster Wheel Wheel Flight Unit Improved Cesium-ion Thruster Utility Hacking Suite Device Improved Sensor Array Storage Large Storage Unit Processor Improved Signal Interpreter Hackware Hacking Suite Weapon Katana Energy Gun Small Laser Ballistic Gun Assault Rifle Launcher Grenade Launcher Impact Weapon Hammer Slashing Weapon Katana Build | -11 -10 -9 -8 -7 -7 ------- Run | Yrd Mat Mat Mat Fac Gar Slots Evolved 6 | . . 2 2 2 . Power . | . . . . . . Propulsion 1 | . . 1 . . . Utility 4 | . . 1 1 2 . Weapon 1 | . . . 1 . . Parts Attached 42 | 6 8 6 13 3 6 Power 6 | 1 . . 2 . 3 Engine 2 | 1 . . 1 . . Core 4 | . . . 1 . 3 Reactor . | . . . . . . Propulsion 13 | 2 3 2 4 1 1 Treads . | . . . . . . Leg . | . . . . . . Wheel 3 | 2 1 . . . . Hover . | . . . . . . Flight 10 | . 2 2 4 1 1 Utility 14 | 1 3 1 5 2 2 Device 4 | . . 1 1 . 2 Storage 2 | 1 1 . . . . Processor 1 | . . . 1 . . Hackware 7 | . 2 . 3 2 . Protection . | . . . . . . Artifact . | . . . . . . Weapon 9 | 2 2 3 2 . . Energy Gun 1 | 1 . . . . . Energy Cannon . | . . . . . . Ballistic Gun 1 | 1 . . . . . Ballistic Cannon . | . . . . . . Launcher 2 | . 2 . . . . Special Weapon . | . . . . . . Impact Weapon 1 | . . 1 . . . Slashing Weapon 4 | . . 2 2 . . Piercing Weapon . | . . . . . . Special Melee Weapon . | . . . . . . Unidentified Prototypes 1 | . . . 1 . . Parts Lost 23 | . . 1 6 . 16 Power 5 | . . . 1 . 4 Propulsion 7 | . . . 2 . 5 Utility 8 | . . . 3 . 5 Weapon 3 | . . 1 . . 2 Highest Loss Streak 11 | . . 1 1 . 11 To Critical Strikes . | . . . . . . Average Backups 3 | . 2 3 4 3 4 Power . | . . . . . . Propulsion . | . . 1 1 . . Utility 1 | . 1 1 2 1 1 Weapon . | . . 1 . . . Tool/Special . | . . . . . . Unused Backups 7 | . 1 1 . 1 4 Power . | . . . . . . Propulsion 2 | . 1 1 . . . Utility 3 | . . . . 1 2 Weapon . | . . . . . . Tool/Special 2 | . . . . . 2 Average Slot Usage (%) 88 | . 85 91 95 99 76 Engine 7 | . 14 11 8 . . Core 1 | . . . . 7 6 Wheel 5 | . 25 . . . . Flight 19 | . 2 33 27 23 13 Device 4 | . . 9 3 . 6 Storage 3 | . 15 . . . . Processor 4 | . . . 8 7 7 Hackware 18 | . . 22 20 37 27 Energy Gun 2 | . 13 . . . . Ballistic Gun 1 | . 5 . . . . Launcher 3 | . 8 8 . . . Slashing Weapon 14 | . . 7 27 23 13 Peak Build Rating 43 | 6 10 18 38 43 43 Average Rating 23 | 4 6 14 34 41 31 On Entrance 18 | . 6 10 18 36 43 Avg Prop Armor Cover (%) . | . . . . . . Naked Turns . | . . . . . . Heaviest Build 33 | 13 33 11 13 11 11 Greatest Support 26 | 26 26 12 17 17 18 Greatest Overweight (x) 1 | 1 1 . 1 . 1 Average Overweight (x) . | . . . . . . Largest Inventory Capacity 15 | 8 15 5 5 5 5 Average Capacity 6 | 6 11 5 5 5 5 Most Carried 8 | . 8 5 5 5 5 Average Carried 3 | . 2 3 4 3 4 Final Capacity 8 | 8 5 5 5 5 5 Final Carried 5 | . 3 4 4 5 4 Class Distribution -------------------- 67% | Hacker-Sprinter 22% | Mutant 9% | Hacker-Mutant Dominant Class ---------------- Mutant | -10/Materials Hacker-Sprinter | -9/Materials Hacker-Sprinter | -8/Materials Hacker-Sprinter | -7/Factory Hacker-Sprinter | -7/Garrison Resources | -11 -10 -9 -8 -7 -7 ----------- Run | Yrd Mat Mat Mat Fac Gar Matter Collected 822 | 207 122 324 105 . 64 Remotely . | . . . . . . Salvage Created 870 | . 216 227 277 . 150 Parts 60 | . 17 13 22 . 8 Haulers Intercepted 6 | . 1 3 2 . . Recyclers Shooed . | . . . . . . Parts Field Recycled . | . . . . . . Retrieved Matter . | . . . . . . Parts Self-Destructed . | . . . . . . Prevented . | . . . . . . Parts Restored . | . . . . . . Kills | -11 -10 -9 -8 -7 -7 ------- Run | Yrd Mat Mat Mat Fac Gar Combat Hostiles Destroyed 22 | . 8 2 6 . 6 Melee 14 | . . 2 6 . 6 Guns 2 | . 2 . . . . AOE 6 | . 6 . . . . Classes Destroyed 7 | . 6 . 1 . . Worker 1 | . 1 . . . . Hauler 6 | . 1 3 2 . . Recycler 1 | . 1 . . . . Operator 3 | . 2 . 1 . . Watcher 2 | . . . 2 . . Swarmer 15 | . 3 . 6 . 6 Grunt 7 | . 5 2 . . . Best Kill Streak 7 | . 4 5 7 . 3 Combat Bots Only 6 | . 3 2 6 . 3 Max Kills in Single Turn 2 | . 2 1 1 . 1 Gunslinging . | . . . . . . Exploded 1 | . 1 . . . . Melee 1 | . . 1 1 . 1 Uniques/NPCs Destroyed . | . . . . . . Combat | -11 -10 -9 -8 -7 -7 -------- Run | Yrd Mat Mat Mat Fac Gar Hostile Shots Fired 286 | . 37 25 90 . 134 Missed 147 | . 16 15 54 . 62 Hits 139 | . 21 10 36 . 72 Melee 2 | . . . 2 . . Projectile 137 | . 21 10 34 . 72 AOE 3 | . . . 3 . . Critical Strikes 5 | . . . 2 . 3 Damage Taken 1977 | . 393 131 500 . 953 Core 871 | . 237 41 146 . 447 Absorbed by Shields 52 | . . . . . 52 Core Remaining (%) 66 | 100 5 89 73 . . Volleys Fired 32 | . 29 3 . . . Largest 2 | . 2 1 . . . Hottest 70 | . 70 30 . . . Shots Fired 60 | . 57 3 . . . Gun 40 | . 40 . . . . Cannon . | . . . . . . Launcher 20 | . 17 3 . . . Special . | . . . . . . Kinetic 11 | . 11 . . . . Thermal 29 | . 29 . . . . Explosive 20 | . 17 3 . . . Electromagnetic . | . . . . . . Robot Hit Streak 7 | . 7 . . . . Robot Miss Streak 4 | . 4 . . . . Penetration Max . | . . . . . . Secondary Targets . | . . . . . . Shots Hit Robots 72 | . 24 7 21 . 20 Core Hits 46 | . 26 7 8 . 5 Critical Kills . | . . . . . . Critical Parts Destroyed . | . . . . . . Critical Strikes . | . . . . . . Melee Attacks 111 | . . 11 47 2 51 Impact . | . . . . . . Slashing 111 | . . 11 47 2 51 Piercing . | . . . . . . Sneak Attacks 6 | . . 3 3 . . Combat Hostiles . | . . . . . . Follow-up Attacks 12 | . . 1 6 . 5 Damage Inflicted 2957 | . 1005 419 862 . 671 Guns 202 | . 202 . . . . Cannons . | . . . . . . Explosions 889 | . 803 86 . . . Melee 1854 | . . 333 862 . 659 Ramming 12 | . . . . . 12 Kinetic 88 | . 88 . . . . Thermal 267 | . 267 . . . . Explosive 736 | . 650 86 . . . Electromagnetic . | . . . . . . Impact . | . . . . . . Slashing 1854 | . . 333 862 . 659 Piercing . | . . . . . . Highest Corruption . | . . . . . . Average Corruption . | . . . . . . Corruption Purged . | . . . . . . Corruption Blocked . | . . . . . . Overload Shots . | . . . . . . Overflow Damage 224 | . 20 30 114 . 60 Projectiles . | . . . . . . Explosions 20 | . 20 . . . . Melee 204 | . . 30 114 . 60 Knockbacks . | . . . . . . Impact . | . . . . . . Kinetic . | . . . . . . Secondary . | . . . . . . Self-Inflicted Damage 222 | . 183 33 . . 6 Shots 3 | . 2 1 . . . Rammed 3 | . . . . . 3 Targets Rammed 3 | . . . . . 3 Kicked . | . . . . . . Crushed . | . . . . . . Highest Temperature 69 | . 69 1 18 . 1 Average Temperature 24 | . 25 1 7 . 1 Received Heat Transfer 400 | . 90 27 90 . 193 Siege Activations . | . . . . . . Martial Activations . | . . . . . . Shielding Activations . | . . . . . . Robots Disrupted . | . . . . . . Combat Hostiles . | . . . . . . Robots Corrupted . | . . . . . . Combat Hostiles . | . . . . . . Parts Fried . | . . . . . . Impact Corruptions . | . . . . . . Robots Melted . | . . . . . . Combat Hostiles . | . . . . . . Parts Melted . | . . . . . . Heat Transferred 350 | . 350 . . . . Parts Sabotaged . | . . . . . . Parts Stolen . | . . . . . . Parts Stripped . | . . . . . . Power Chain Reactions . | . . . . . . Alert | -11 -10 -9 -8 -7 -7 ------- Run | Yrd Mat Mat Mat Fac Gar Maximum Alert Level 2 | . 1 1 2 . 1 Low Security (%) 59 | 100 54 41 54 100 69 Level 1 38 | . 45 58 40 . 30 Level 2 1 | . . . 5 . . Level 3 . | . . . . . . Level 4 . | . . . . . . Level 5 . | . . . . . . High Security . | . . . . . . Max Security . | . . . . . . Peak Influence 436 | . 352 286 436 156 335 Initial 151 | . . 135 117 151 . Average 174 | . 175 206 198 143 153 Influence Increases 1778 | . 457 252 574 15 480 Destroy 0b10 Robot/C 440 | . 160 40 120 . 120 Destroy 0b10 Robot/NC 65 | . 25 15 25 . . Destroy Leader 86 | . 42 6 28 . 10 Successful Hack 34 | . . 18 16 . . Disable Machine 135 | . 90 15 15 15 . Anti-Garrison Action 100 | . . . . . 100 Destroy Structure 213 | . 125 23 10 . 55 Partial Spotted 135 | . . 75 30 . 30 Lose Combat Pursuer 570 | . 15 60 330 . 165 Influence Decreases 1458 | . 135 297 518 348 160 Entered New Map 529 | . . 187 160 182 . Time Decay 463 | . 135 100 198 30 . Search Patrol Dispatched 100 | . . . 100 . . Lost Part 230 | . . 10 60 . 160 Purge Threat 136 | . . . . 136 . Squads Dispatched 8 | . 3 1 4 . . Investigation 1 | . . 1 . . . Extermination . | . . . . . . Reinforcement 5 | . 3 . 2 . . Assault 2 | . . . 2 . . Garrison . | . . . . . . Intercept . | . . . . . . Searches Triggered 1 | . . . 1 . . Construction Impeded . | . . . . . . Haulers Reinforced . | . . . . . . Active Scanning Responses . | . . . . . . Cargo Convoy Interrupts . | . . . . . . Stealth | -11 -10 -9 -8 -7 -7 --------- Run | Yrd Mat Mat Mat Fac Gar Distress Signals 5 | . 2 1 2 . . Communications Jammed . | . . . . . . Distress Signals . | . . . . . . Times Spotted 106 | . 15 18 51 . 22 Peak Tracking Total 16 | . 5 14 16 . 8 Tactical Retreats 16 | . 1 2 7 . 6 Traps | -11 -10 -9 -8 -7 -7 ------- Run | Yrd Mat Mat Mat Fac Gar Traps Triggered 2 | . . 1 . . 1 Indirectly . | . . . . . . Trap Hack Attempts . | . . . . . . Triggered . | . . . . . . Disarmed . | . . . . . . Reprogrammed . | . . . . . . Reused . | . . . . . . Traps Extracted . | . . . . . . Installed . | . . . . . . Triggered . | . . . . . . Machines | -11 -10 -9 -8 -7 -7 ---------- Run | Yrd Mat Mat Mat Fac Gar Machines Disabled 11 | . 6 1 1 1 2 Max in Single Turn 3 | . 3 1 1 1 1 Garrison Access 1 | . . . 1 . . Garrison Relay 2 | . . . . . 2 Machines Repaired . | . . . . . . Machines Dismantled . | . . . . . . Machines Sabotaged . | . . . . . . Overloaded Fab Kills . | . . . . . . Hacking | -11 -10 -9 -8 -7 -7 --------- Run | Yrd Mat Mat Mat Fac Gar Machines Accessed 14 | . 1 6 3 3 1 Terminals 10 | . 1 4 3 1 1 Fabricators 1 | . . . . 1 . Repair Stations . | . . . . . . Recycling Units 1 | . . 1 . . . Scanalyzers 1 | . . 1 . . . Garrison Access 1 | . . . . 1 . Total Hacks 48 | . 4 19 11 13 1 Successful 27 | . . 15 7 4 1 Failed 21 | . 4 4 4 9 . Catastrophic 1 | . . . 1 . . Database Lockouts . | . . . . . . Manual 16 | . 2 6 6 2 . Terminals 38 | . 4 13 11 9 1 Fabricators 2 | . . . . 2 . Repair Stations . | . . . . . . Recycling Units 1 | . . 1 . . . Scanalyzers 5 | . . 5 . . . Garrison Access 2 | . . . . 2 . Terminal Hacks 13 | . . 5 5 2 1 Robot Analysis 1 | . . . 1 . . Branch Access Points 2 | . . 1 1 . . Emergency Access Points 1 | . . . . . 1 Alert Level 1 | . . 1 . . . Unreport Threat 1 | . . . . 1 . Locate Traps 2 | . . . 1 1 . Hauler Manifests 2 | . . 1 1 . . Registered Components 1 | . . . 1 . . Zone Layout 2 | . . 2 . . . Fabricator Hacks 1 | . . . . 1 . Network Status 1 | . . . . 1 . Repair Station Hacks . | . . . . . . Recycling Unit Hacks 1 | . . 1 . . . Report Inventory 1 | . . 1 . . . Scanalyzer 5 | . . 5 . . . Insert Component 2 | . . 2 . . . Analyze 2 | . . 2 . . . Retrieve Study 1 | . . 1 . . . Garrison Access Hacks 1 | . . . . 1 . Unlock Access 1 | . . . . 1 . Unauthorized Hacks 6 | . . 4 2 . . Terminals 6 | . . 4 2 . . Botnet 6 | . . 4 2 . . Fabricators . | . . . . . . Repair Stations . | . . . . . . Recycling Units . | . . . . . . Scanalyzers . | . . . . . . Garrison Access . | . . . . . . Data Cores Recovered . | . . . . . . Used . | . . . . . . Hacking Detections 11 | . 1 5 3 1 1 Full Trace Events . | . . . . . . Feedback Events . | . . . . . . Feedback Blocked . | . . . . . . Robot Schematics Acquired . | . . . . . . Robots Built . | . . . . . . Authchips . | . . . . . . Time . | . . . . . . Total Robot Build Rating . | . . . . . . Part Schematics Acquired 2 | . . 2 . . . Parts Built . | . . . . . . Authchips . | . . . . . . Time . | . . . . . . Total Part Build Rating . | . . . . . . Part Studies Acquired . | . . . . . . Parts Repaired . | . . . . . . Time . | . . . . . . Parts Recycled . | . . . . . . Recycled Matter . | . . . . . . Retrieved Matter . | . . . . . . Retrieved Components . | . . . . . . Parts Scanalyzed 2 | . . 2 . . . Part Schematics Acquired 2 | . . 2 . . . Parts Damaged . | . . . . . . Bothacking | -11 -10 -9 -8 -7 -7 ------------ Run | Yrd Mat Mat Mat Fac Gar Used RIF Installer . | . . . . . . Robots Hacked . | . . . . . . Non-combat . | . . . . . . Combat . | . . . . . . Robot Hacks Applied . | . . . . . . Relay Couplers Released 11 | . . . 2 . 9 Machine Destruction 11 | . . . 2 . 9 Fabnet Peak Effective % . | . . . . . . Robots Rewired . | . . . . . . Allies Hacked . | . . . . . . Hacks Repelled . | . . . . . . Allies | -11 -10 -9 -8 -7 -7 -------- Run | Yrd Mat Mat Mat Fac Gar Total Allies . | . . . . . . Largest Group . | . . . . . . Highest-Rated Group . | . . . . . . Highest-Rated Ally . | . . . . . . Total Orders . | . . . . . . Ally Attacks . | . . . . . . Total Damage . | . . . . . . Kills . | . . . . . . Allies Corrupted . | . . . . . . Allies Melted . | . . . . . . Intel | -11 -10 -9 -8 -7 -7 ------- Run | Yrd Mat Mat Mat Fac Gar Active Infowar (turns) 480 | . . 194 168 . 118 Sensors 480 | . . 194 168 . 118 Robot Analysis Total 1 | . . . 1 . . Derelict Logs Recovered . | . . . . . . Drone Launches . | . . . . . . Drone Recoveries . | . . . . . . Exploration | -11 -10 -9 -8 -7 -7 ------------- Run | Yrd Mat Mat Mat Fac Gar Turns Passed 1329 | 54 292 210 417 72 284 Spaces Moved 2162 | 51 221 507 792 211 380 Core 109 | 3 . . . . 106 Treads . | . . . . . . Legs . | . . . . . . Wheels 215 | 48 167 . . . . Hover . | . . . . . . Flight 1838 | . 54 507 792 211 274 Fastest Speed 29 | 50 37 32 29 29 30 Average Speed 37 | 89 79 32 29 29 37 Slowest Speed 114 | 100 95 34 114 30 100 Overloaded Moves . | . . . . . . Propulsion Burnouts . | . . . . . . Robots Hopped 14 | . . 6 5 2 1 Potential Cave-ins . | . . . . . . Cave-ins Triggered . | . . . . . . Exploration Rate (%) 38 | 4 50 50 65 5 59 Regions Visited 5 Branch Regions . Pre-discovered Areas . | . . . . . . Known Exits Taken 2 | . . . 1 1 . Unknown Exits Taken 3 | 1 1 1 . . . Scrap Searched . | . . . . . . Spaces Dug 18 | . . 3 10 . 5 Terrain Destroyed 185 | . 149 21 10 . 5 Melee 18 | . . 3 10 . 5 Projectile . | . . . . . . AOE 167 | . 149 18 . . . Terrain Rammed . | . . . . . . Walls Destroyed . | . . . . . . Machines Disabled . | . . . . . . Actions | -11 -10 -9 -8 -7 -7 --------- Run | Yrd Mat Mat Mat Fac Gar Total 2448 | 56 282 528 914 216 452 Wait 68 | . 2 2 58 . 6 Move 2130 | 50 220 494 782 206 378 Hop 13 | . . 6 4 2 1 Pick Up 24 | . 8 4 6 3 3 Fast Attach 22 | 6 2 2 9 . 3 Attach 15 | . 4 3 2 2 4 Detach 8 | . 5 1 2 . . Swap 11 | . 4 1 5 1 . Drop 20 | . 8 2 9 1 . Fire 32 | . 29 3 . . . Melee 91 | . . 10 37 1 43 Ram 3 | . . . . . 3 Kick . | . . . . . . Crush . | . . . . . . Escape Stasis 11 | . . . . . 11 Rewire . | . . . . . . Trap . | . . . . . . Miscellaneous . | . . . . . . Route ------- -11/Scrapyard -10/Materials (discovered 2 exits: *Mat / [*Min]) -9/Materials (discovered 2 exits: *Mat / Min) -8/Materials -7/Factory (discovered 2 exits: *Low / Gar) -7/Garrison (discovered 1 exit: *Fac) History --------- Turn | Location | Event 2 | -11/Scrapyard | Met Revision 17 14 | -11/Scrapyard | Discovered new exit (range 15) 55 | -11/Scrapyard | Entered Materials 55 | -10/Materials | Discovered new exit (range 15) 175 | -10/Materials | Core integrity fell below 50% 175 | -10/Materials | Core integrity fell below 20% 301 | -10/Materials | Build established: Mutant 328 | -10/Materials | Discovered new exit (range 11) 347 | -10/Materials | Entered another Materials area 347 | -9/Materials | Evolved 2 slots: Propulsion x1, Utility x1 518 | -9/Materials | Identified exit to Mines 554 | -9/Materials | Discovered new exit (range 6) 557 | -9/Materials | Entered another Materials area 557 | -8/Materials | Evolved 2 slots: Utility x1, Weapon x1 616 | -8/Materials | Build established: Hacker-Sprinter 957 | -8/Materials | Search patrols dispatched 968 | -8/Materials | Discovered new exit (range 5) 974 | -8/Materials | Identified exit to Factory 974 | -8/Materials | Entered Factory 974 | -7/Factory | Evolved 2 slots: Utility x2 985 | -7/Factory | Discovered new exit (range 16) 990 | -7/Factory | Identified exit to Lower Caves 1046 | -7/Factory | Identified exit to Garrison 1046 | -7/Factory | Entered Garrison 1074 | -7/Garrison | Garrison Relay disabled 1094 | -7/Garrison | Triggered checkpoint 1218 | -7/Garrison | Triggered checkpoint 1237 | -7/Garrison | Lost 11 parts (3p4n2u2w) 1253 | -7/Garrison | Garrison Relay disabled 1264 | -7/Garrison | Triggered checkpoint 1269 | -7/Garrison | Discovered new exit (range 10) 1274 | -7/Garrison | Identified exit to Factory 1314 | -7/Garrison | Triggered checkpoint 1316 | -7/Garrison | Triggered checkpoint 1325 | -7/Garrison | Core integrity fell below 50% 1330 | -7/Garrison | Self-destructed Last Messages --------------- unit. 01253_ Relay Coupler [Duelist] tumbles out of relay unit. 01256_ Acquired Relay Coupler [NC]. 01264_ Beams of light sweep through the air. An alarm sounds. 01264_ Cesium-ion Thruster destroyed. 01269_ EXIT=FOUND 01274_ EXIT=IDENTIFIED: FACTORY 01314_ Beams of light sweep through the air. An alarm sounds. 01317_ ALERT: Dispatching investigation squad to Factory. 01318_ Penetrated by Slug. 01318_ Imp. Sensor Array destroyed. 01321_ Lgt. Nuclear Core destroyed. 01321_ Hacking Suite destroyed. 01324_ Critical hit (Burn: +37). 01326_ System Shield destroyed. 01326_ Slammed into G-47 Trooper. Map ----- +----------------------------------------------------+ | ???# #??# #???# #??????# #???????????????????? | | ???##+##??# #???# #??????# #######?????????????? | | ????# #???# #???# #??????# ## #?????????????? | | ????# #???# #???# #?????## ## ###+##????????? | | ????#[##### ##### ##+#### #######??? | | ????#%** " ??? | | ????############# ??? | | ????????????????########## ## ## ####?????? | | ?????????????????????????# ## ## ###??????? | | ?????????????????????????" ^ #??????? | | ?????????????????????????" #??????? | | ?????????????????????????" #??????? | | ?????????????????????????" +??????? | | ?????????????????????????# ## ## #????????? | | ???????????????#+######### ## ^## ####+##### | | ???????????????# ^ | | ???????????????# | | ?????????????????????##### | | ?????????????????????????##"### ##++##T##"### | | ??????????????????????????# #?# #????#### #?# | | ??????????????????????????# #?######???????# #?# | | ??????????????????######### #??????????????# #?# | | ??????????????????/ s#??????????????# #?# | | ??????????????????########s##??????????????# #?# | | ????????????????????????##s#????????# ##### ### | | ????????????????????????#@%#????????# " | | ????????????????????????# g#????????# + | | ????????????????????????####????????############ | | ???????????????????????????????????????????????# | | ????????????????+??????????????????????????????# | | ???????????????????????????????????????????????# | | ???????????????????????????????????????????????# | | ???????????????????????????????????????????????# | | ???????????????????????????????????????????????# | | ???????????????????????????????????????????????# | | ??????????????+?+??????????????????????????????# | | ???????????????????????????????????????????????# | | ????????????????????+??????????????????????????# | | ???????????????????????????????????????????????# | | ???????????????????????????????????????????????#+" | | ???????????????????????????????????????????????# | | ???????????????????????????????????????????#####+" | | ???????????????????????????????????????????# " | | ???????????????????????????????????????????# + | | ???????????????????????????????????????????# #### | | ???????????????????????????????????????????# #?#" | | ???????????????????????????????????????????# #?## | | ?????????????????????????????????????####### ##?? | | ?????????????????????????????????????# #?? | | ?????????????????????????????????????# #?? | +----------------------------------------------------+ Best States ------------- Heat Dissipation 34 Energy Generation 14 Energy Capacity 250 Matter Stores 300 Matter Capacity 300 Sight Range 16 Robot Scan Range 15 Terrain Scan Density 10 Additional Mass Support 9 Evasion (%) 64 Offensive Hacking 20 Defensive Hacking 30 Item Schematics ----------------- Katana | -9/Materials | Scanalyzed Flight Unit | -9/Materials | Scanalyzed Robot Schematics ------------------ None Fabricated ------------ Nothing Repaired ---------- Nothing Studied --------- None Alien Tech Used ----------------- None Achievements -------------- You Again Challenges ------------ None Game ------ Seed ShockboltCoolingKit Manual? 0 Play Time 00:40:32 Cumulative 85.5 hours Start 2025.10.26 @ 16:28:16 End 2025.10.26 @ 18:25:19 Sessions 1 Manual Loads 0 Difficulty Rogue Special Mode None Game No. 134 Rogue 134 Adventurer 0 Explorer 0 Win Type - Total 0 Types 0/0/0/0/0/0/0/0/0/0 Lore% 28 Gallery% 31 Achievement% 24 Wizard Run 0 Options --------- Layout 1 ASCII 0 Keyboard 0 Movement Arrows Keybinds 0 Fullscreen 1 Font 24/Smallcaps Map View 50x35 Zoom Use 0% Tactical HUD 1 Map Filters NONE Filters NONE Steam 1 RUN: bc4fd2a7-a949-468c-a134-f5cd93b2ebee